bitfinex/quotes_SOLUSD_20250704
["timestamp","ask_amount","ask_price","bid_price","bid_amount"]
[1751616622249,6.37737288,150.04,150.0,11.37737288]
[1751616622467,6.37737288,150.04,150.0,5.0]
[1751616622961,6.66533359,150.03,150.0,5.0]
[1751616623543,13.04270647,150.03,150.0,5.0]
[1751616624663,6.66533359,150.03,150.0,11.37737288]
[1751616628867,6.66533359,150.03,150.0,5.0]
[1751616629070,6.66533359,150.03,150.0,11.37737288]
[1751616630374,6.37737288,150.02,150.0,5.0]
[1751616632065,6.66622225,150.01,150.0,5.0]
[1751616633581,13.04359513,150.01,150.0,5.0]
[1751616635379,29.70915075,150.01,149.96,0.1]
[1751616635591,6.6112,149.96,149.88,0.07206021]
[1751616635751,26.0,149.92,149.85,6.42760918]
[1751616636068,26.0,149.92,149.86,6.37737288]
[1751616636069,6.67111407,149.9,149.86,6.37737288]
[1751616636376,16.85928151,149.89,149.85,6.42760918]
[1751616636557,16.85928151,149.89,149.85,12.80498206]
[1751616636871,16.85928151,149.89,149.85,2.80498206]
[1751616637056,16.85928151,149.89,149.8,5.39794745]
[1751616637253,40.81448335,149.92,149.87,6.37737288]
[1751616637254,6.67076644,149.91,149.87,6.37737288]
[1751616637455,6.6693344,149.94,149.9,6.37737288]
[1751616637658,6.6693344,149.94,149.91,6.37737288]
[1751616637974,16.66864682,149.99,149.92,6.37737288]
[1751616638157,16.82095002,149.98,149.87,18.64964886]
[1751616638359,16.82095002,149.98,149.87,42.00322195]
[1751616638759,23.1983229,149.98,149.87,42.00322195]
[1751616638961,6.37737288,149.97,149.87,42.00322195]
[1751616639163,23.1983229,149.98,149.87,42.00322195]
[1751616639374,6.37737288,149.97,149.87,42.00322195]
[1751616639772,6.37737288,149.97,149.92,6.37737288]
[1751616639972,6.37737288,149.94,149.87,6.67244945]
[1751616640173,13.04715211,149.93,149.89,6.37737288]
[1751616640374,6.37737288,149.92,149.85,26.0]
[1751616640579,6.37737288,149.92,149.88,6.37737288]
[1751616640765,6.37737288,149.92,149.85,6.6732037]
[1751616641085,6.37737288,149.9,149.86,6.37737288]
[1751616641292,23.3442273,149.93,149.87,6.37737288]
[1751616641477,6.37737288,149.92,149.87,6.37737288]
[1751616641793,6.37737288,149.91,149.87,6.37737288]
[1751616642158,6.37737288,149.94,149.9,6.37737288]
[1751616642486,6.37737288,149.95,149.9,6.37737288]
[1751616643088,13.04537314,149.97,149.93,6.37737288]
[1751616643470,6.66800026,149.97,149.93,6.37737288]
[1751616644979,6.66800026,149.97,149.9,6.67091229]
[1751616645177,13.04537314,149.97,149.93,6.37737288]
[1751616647287,13.04537314,149.97,149.9,6.67091229]
[1751616647492,13.04537314,149.97,149.93,6.37737288]
[1751616648979,6.66800026,149.97,149.93,6.37737288]
[1751616649577,6.66800026,149.97,149.88,6.67200427]
[1751616649784,13.04537314,149.97,149.93,6.37737288]
[1751616650363,6.66771214,149.98,149.94,6.37737288]
[1751616650569,6.66771214,149.98,149.95,6.37737288]
[1751616651595,6.66711114,149.99,149.95,6.37737288]
[1751616652495,16.60325583,150.0,149.97,6.37737288]
[1751616652699,6.66629263,150.01,149.97,6.37737288]
[1751616653291,6.66629263,150.01,149.93,6.6697438]
[1751616653292,6.66583632,150.02,149.99,6.37737288]
[1751616653672,6.66583632,150.02,149.98,6.37737288]
[1751616654377,13.0432092,150.02,149.98,6.37737288]
[1751616654577,13.0432092,150.02,149.93,7.32]
[1751616654907,26.75569006,150.02,149.94,6.37737288]
[1751616655408,6.37737288,149.98,149.94,6.37737288]
[1751616656102,6.66800026,149.97,149.94,6.37737288]
[1751616659209,6.66711114,149.99,149.96,6.37737288]
[1751616660379,13.04448402,149.99,149.92,6.67014847]
[1751616660582,6.66711114,149.99,149.95,6.37737288]
[1751616660907,6.66622225,150.01,149.97,6.37737288]
[1751616661108,13.04359513,150.01,149.97,6.37737288]
[1751616661498,12.15359513,150.01,149.97,6.37737288]
[1751616662410,5.77622225,150.01,149.97,6.37737288]
[1751616662617,12.15359513,150.01,149.94,6.6693344]
[1751616662790,12.15359513,150.01,149.97,6.37737288]
[1751616663419,5.77622225,150.01,149.97,6.37737288]
[1751616663900,5.77622225,150.01,149.94,6.6693344]
[1751616664200,6.37737288,150.0,149.96,6.37737288]
[1751616664407,28.81915075,150.01,149.96,6.37737288]
[1751616665109,6.37737288,149.99,149.92,6.67004899]
[1751616665286,6.37737288,149.99,149.94,6.37737288]
[1751616665606,6.37737288,149.99,149.95,6.37737288]
[1751616666511,6.66755567,149.98,149.92,6.67017661]
[1751616666899,6.66755567,149.98,149.94,6.37737288]
[1751616669620,6.37737288,149.96,149.92,6.37737288]
[1751616670316,6.37737288,149.96,149.91,6.37737288]
[1751616670815,6.2153,149.97,149.91,6.37737288]
[1751616671002,6.37737288,149.95,149.91,6.37737288]
[1751616671609,6.6693344,149.94,149.88,6.67180248]
[1751616671812,6.6693344,149.94,149.91,6.37737288]
[1751616672197,6.37737288,149.93,149.87,7.32]
[1751616672394,6.37737288,149.93,149.89,6.37737288]
[1751616672592,6.37737288,149.93,149.87,7.32]
[1751616672813,29.72004328,149.94,149.89,6.37737288]
[1751616674523,6.37737288,149.93,149.89,6.37737288]
[1751616674822,6.37737288,149.93,149.88,6.47737288]
[1751616675026,6.37737288,149.92,149.88,6.47737288]
[1751616675224,23.3426704,149.94,149.89,6.37737288]
[1751616675402,23.3426704,149.94,149.9,6.37737288]
[1751616675607,29.72004328,149.94,149.9,6.37737288]
[1751616676741,23.05070888,149.94,149.9,6.37737288]
[1751616678014,23.3426704,149.94,149.9,6.37737288]
[1751616678233,13.04670728,149.94,149.9,6.37737288]
[1751616679838,29.72004328,149.94,149.88,0.1]
[1751616680011,6.67022411,149.92,149.89,6.37737288]
[1751616680211,6.67022411,149.92,149.9,6.37737288]
[1751616681133,6.67022411,149.92,149.88,0.1]
[1751616681341,6.67022411,149.92,149.9,6.37737288]
[1751616681510,6.67022411,149.92,149.88,0.1]
[1751616681711,6.67022411,149.92,149.89,6.37737288]
[1751616682925,6.67022411,149.92,149.88,0.1]
[1751616683127,6.67022411,149.92,149.89,6.37737288]
[1751616683622,6.37737288,149.95,149.9,6.37737288]
[1751616683824,6.37737288,149.95,149.91,6.37737288]
[1751616684423,6.66951438,149.94,149.91,6.37737288]
[1751616684841,6.66951438,149.94,149.9,6.37737288]
[1751616685046,6.66951438,149.94,149.88,6.77191928]
[1751616685237,6.66951438,149.94,149.9,6.37737288]
[1751616685436,6.66951438,149.94,149.91,6.37737288]
[1751616685730,6.66951438,149.94,149.88,6.77191928]
[1751616685936,6.66951438,149.94,149.91,6.37737288]
[1751616686336,13.04688726,149.94,149.88,0.1]
[1751616686529,13.04688726,149.94,149.89,6.37737288]
[1751616686725,13.04688726,149.94,149.88,0.1]
[1751616686930,6.37737288,149.92,149.88,0.1]
[1751616687133,6.37737288,149.92,149.88,6.47737288]
[1751616687553,6.37737288,149.92,149.88,0.1]
[1751616687728,6.37737288,149.91,149.88,0.1]
[1751616688036,6.37737288,149.91,149.87,13.29737288]
[1751616688227,6.37737288,149.92,149.87,13.29737288]
[1751616688543,6.37737288,149.92,149.87,6.92]
[1751616688718,6.37737288,149.92,149.87,13.29737288]
[1751616688929,6.5499,149.91,149.81,14.07498917]
[1751616689232,26.0,149.88,149.82,6.37737288]
[1751616689545,19.6513808,149.9,149.83,6.37737288]
[1751616689862,19.6513808,149.9,149.86,6.37737288]
[1751616690163,19.6513808,149.9,149.79,26.83638847]
[1751616690164,6.67111407,149.9,149.87,6.37737288]
[1751616690316,6.67022411,149.92,149.88,6.37737288]
[1751616690519,6.67022411,149.92,149.84,6.37737288]
[1751616690520,8.17725601,149.93,149.89,6.37737288]
[1751616690718,8.17725601,149.93,149.88,6.37737288]
[1751616690719,6.37737288,149.92,149.88,6.37737288]
[1751616690940,6.37737288,149.92,149.84,6.37737288]
[1751616691327,6.37737288,149.92,149.88,6.37737288]
[1751616692053,6.37737288,149.91,149.83,25.32387965]
[1751616692245,6.67111407,149.9,149.86,6.37737288]
[1751616692822,13.04848695,149.9,149.86,6.37737288]
[1751616693122,13.04821157,149.91,149.86,13.05023877]
[1751616693422,6.37737288,149.92,149.88,6.37737288]
[1751616693958,1.5073,149.93,149.89,6.37737288]
[1751616693959,7.88467288,149.93,149.89,6.37737288]
[1751616694125,6.67033951,149.92,149.89,6.37737288]
[1751616694537,7.88467288,149.93,149.9,6.37737288]
[1751616694538,6.66994444,149.93,149.9,6.37737288]
[1751616694727,25.7531808,149.95,149.91,6.37737288]
[1751616694941,6.1018,149.95,149.91,6.37737288]
[1751616695142,12.47917288,149.95,149.9,6.37737288]
[1751616695331,6.37737288,149.94,149.89,6.37737288]
[1751616695535,6.37737288,149.94,149.9,6.37737288]
[1751616695738,13.04686503,149.94,149.9,6.37737288]
[1751616696046,6.66949215,149.94,149.9,6.37737288]
[1751616696240,13.04638547,149.95,149.91,6.37737288]
[1751616696937,8.33012859,149.96,149.92,6.37737288]
[1751616697137,13.04549866,149.97,149.93,6.37737288]
[1751616698037,13.04549866,149.97,149.9,25.32076293]
[1751616698038,6.66812578,149.97,149.9,25.32076293]
[1751616698242,13.04496411,149.98,149.94,6.37737288]
[1751616698739,6.66759123,149.98,149.94,6.37737288]
[1751616698930,15.85948543,150.03,149.97,6.37737288]
[1751616699133,6.37737288,149.99,149.93,26.0]
[1751616699427,6.37737288,149.96,149.92,6.37737288]
[1751616699631,26.0,150.0,149.92,6.37737288]
[1751616699944,6.66711114,149.99,149.92,6.37737288]
[1751616700144,6.37737288,149.96,149.92,6.37737288]
[1751616700341,6.37737288,149.93,149.89,6.37737288]
[1751616700552,6.37737288,149.91,149.87,7.34]
[1751616700843,6.2608,149.96,149.87,13.71737288]
[1751616701156,6.37737288,149.92,149.87,13.71737288]
[1751616701366,6.37737288,149.91,149.87,7.34]
[1751616701830,6.37737288,149.91,149.87,13.71737288]
[1751616702176,13.04827009,149.91,149.87,13.71737288]
[1751616702334,6.37737288,149.91,149.87,13.71737288]
[1751616702536,13.04802394,149.92,149.88,6.37737288]
[1751616702977,13.04802394,149.92,149.87,7.34]
[1751616703159,13.04802394,149.92,149.88,6.37737288]
[1751616703658,13.04802394,149.92,149.87,7.34]
[1751616703876,6.37737288,149.91,149.87,7.34]
[1751616704028,13.04847207,149.91,149.87,13.71737288]
[1751616704686,6.37737288,149.9,149.87,7.34]
[1751616704823,6.37737288,149.9,149.85,6.37737288]
[1751616705228,6.67109919,149.91,149.85,6.37737288]
[1751616705444,6.37737288,149.89,149.82,26.0]
[1751616705656,6.37737288,149.89,149.85,6.37737288]
[1751616706358,6.67200427,149.88,149.82,6.67441509]
[1751616706563,6.67200427,149.88,149.84,6.37737288]
[1751616706751,6.67200427,149.88,149.85,6.37737288]
[1751616707351,6.67200427,149.88,149.82,6.67441509]
[1751616707668,6.37737288,149.89,149.85,6.37737288]
[1751616709272,6.37737288,149.88,149.84,6.37737288]
[1751616709442,23.34889926,149.9,149.84,6.37737288]
[1751616709643,6.37737288,149.88,149.84,6.37737288]
[1751616710142,6.37737288,149.89,149.81,7.44]
[1751616710345,6.37737288,149.88,149.84,6.37737288]
[1751616710656,6.37737288,149.87,149.82,6.37737288]
[1751616710855,6.37737288,149.87,149.81,7.44]
[1751616711050,6.37737288,149.87,149.82,6.37737288]
[1751616711446,6.37737288,149.87,149.83,6.37737288]
[1751616711647,13.04893202,149.89,149.84,6.37737288]
[1751616713177,13.04893202,149.89,149.82,6.67436448]
[1751616713341,6.37737288,149.88,149.81,14.11501673]
[1751616713546,6.37737288,149.88,149.84,6.37737288]
[1751616713745,6.67244945,149.87,149.84,6.37737288]
[1751616714051,6.67244945,149.87,149.81,14.11501673]
[1751616714257,6.67244945,149.87,149.84,6.37737288]
[1751616714946,6.67244945,149.87,149.81,14.11501673]
[1751616715147,13.04982233,149.87,149.82,6.37737288]
[1751616715563,6.67244945,149.87,149.83,6.37737288]
[1751616715763,6.67244945,149.87,149.84,6.37737288]
[1751616718062,13.04982233,149.87,149.81,14.11510425]
[1751616718266,13.04982233,149.87,149.81,7.44]
[1751616718574,6.67334,149.85,149.82,6.37737288]
[1751616719150,6.67334,149.85,149.81,13.81737288]
[1751616721152,6.67334,149.85,149.82,6.37737288]
[1751616721770,6.67334,149.85,149.81,7.44]
[1751616721977,13.05071288,149.85,149.81,13.81737288]
[1751616723278,6.37737288,149.86,149.81,13.81737288]
[1751616723580,6.37737288,149.87,149.83,6.37737288]
[1751616724478,6.37737288,149.88,149.83,6.37737288]
[1751616724676,23.35045699,149.89,149.84,6.37737288]
[1751616724976,6.37737288,149.88,149.84,6.37737288]
[1751616725179,23.35045699,149.89,149.84,6.37737288]
[1751616725487,6.67244945,149.87,149.84,6.37737288]
[1751616725672,6.67244945,149.87,149.81,14.11493865]
[1751616725873,6.67244945,149.87,149.83,6.37737288]
[1751616726689,23.35045699,149.89,149.83,6.37737288]
[1751616726849,6.37737288,149.87,149.83,6.37737288]
[1751616727553,6.37737288,149.88,149.83,6.37737288]
[1751616727769,23.35045699,149.89,149.83,13.05158611]
[1751616727969,23.35045699,149.89,149.84,6.37737288]
[1751616728148,6.37737288,149.88,149.83,6.37737288]
[1751616728556,6.67155914,149.89,149.85,6.37737288]
[1751616728784,6.37737288,149.88,149.83,6.37737288]
[1751616729084,13.04893202,149.89,149.84,6.37737288]
[1751616729973,13.04893202,149.89,149.85,6.37737288]
[1751616730981,7.29424904,149.93,149.88,6.37737288]
[1751616730982,0.2,149.93,149.88,6.37737288]
[1751616731289,0.2,149.93,149.85,44.64964886]
[1751616731489,0.2,149.93,149.9,6.37737288]
[1751616731878,0.2,149.93,149.91,6.37737288]
[1751616732075,0.2,149.93,149.92,6.37737288]
[1751616733880,0.2,149.93,149.92,13.04759699]
[1751616734274,0.2,149.93,149.92,6.37737288]
[1751616734480,0.2,149.93,149.92,13.04759699]
[1751616735590,0.2,149.93,149.92,6.37737288]
[1751616736293,6.86977923,149.93,149.91,6.37737288]
[1751616736476,13.24715211,149.93,149.89,6.37737288]
[1751616736675,6.37737288,149.92,149.88,6.37737288]
[1751616736895,13.24715211,149.93,149.89,6.37737288]
[1751616737082,6.86977923,149.93,149.89,6.37737288]
[1751616737282,6.86977923,149.93,149.87,6.37737288]
[1751616737283,6.37737288,149.91,149.87,6.37737288]
[1751616738103,25.0662273,149.93,149.86,13.69737288]
[1751616738297,13.04843936,149.91,149.87,6.37737288]
[1751616738981,6.67106648,149.91,149.88,6.37737288]
[1751616739192,0.2,149.93,149.9,6.37737288]
[1751616739583,0.2,149.93,149.91,6.37737288]
[1751616740491,6.86979629,149.93,149.91,6.37737288]
[1751616741202,0.2,149.93,149.9,6.37737288]
[1751616741890,13.24723275,149.93,149.89,6.37737288]
[1751616742077,6.37737288,149.91,149.86,7.32]
[1751616742279,6.86985987,149.93,149.86,13.69737288]
[1751616742481,6.37737288,149.91,149.86,13.69737288]
[1751616742698,6.37737288,149.91,149.87,6.37737288]
[1751616743512,6.37737288,149.9,149.86,13.69737288]
[1751616743802,6.37737288,149.91,149.87,6.37737288]
[1751616744390,6.67111407,149.9,149.87,6.37737288]
[1751616744874,6.67022411,149.92,149.88,6.37737288]
[1751616745693,13.04759699,149.92,149.86,13.99281434]
[1751616745892,13.04759699,149.92,149.88,6.37737288]
[1751616746905,13.04759699,149.92,149.86,7.32]
[1751616747082,13.04759699,149.92,149.88,6.37737288]
[1751616748612,13.04759699,149.92,149.86,7.32]
[1751616748907,13.04759699,149.92,149.88,6.37737288]
[1751616749115,6.67022411,149.92,149.88,6.37737288]
[1751616749410,13.04759699,149.92,149.88,6.37737288]
[1751616749814,6.8698594,149.93,149.9,6.37737288]
[1751616750311,6.8698594,149.93,149.88,6.37737288]
[1751616750517,6.37737288,149.92,149.86,7.32]
[1751616750717,6.67066906,149.91,149.88,6.37737288]
[1751616751219,6.67066906,149.91,149.87,6.37737288]
[1751616751387,13.04804194,149.91,149.87,6.37737288]
[1751616752938,13.04804194,149.91,149.86,7.32]
[1751616753122,13.04804194,149.91,149.86,13.69737288]
[1751616753749,6.67066906,149.91,149.86,13.69737288]
[1751616753951,13.04804194,149.91,149.86,13.69737288]
[1751616754341,6.67022411,149.92,149.86,13.69737288]
[1751616754647,13.04759699,149.92,149.88,6.37737288]
[1751616755012,13.04759699,149.92,149.87,6.37737288]
[1751616755414,6.37737288,149.9,149.86,13.69737288]
[1751616755715,1.5927,149.9,149.86,13.69737288]
[1751616756207,1.5927,149.9,149.84,6.37737288]
[1751616756412,6.67244945,149.87,149.81,6.77496344]
[1751616756629,13.04982233,149.87,149.83,6.37737288]
[1751616756841,13.04982233,149.87,149.81,0.1]
[1751616757140,29.73094597,149.87,149.82,6.37737288]
[1751616757843,23.35357309,149.87,149.82,6.37737288]
[1751616758137,13.04982233,149.87,149.82,6.37737288]
[1751616758313,23.05627191,149.89,149.84,6.37737288]
[1751616758637,7.97007288,149.9,149.85,6.37737288]
[1751616758826,6.37737288,149.88,149.83,6.37737288]
[1751616759821,6.6728947,149.86,149.81,6.77503639]
[1751616760143,6.67253475,149.87,149.83,6.37737288]
[1751616760523,6.67253475,149.87,149.84,6.37737288]
[1751616760708,6.67253475,149.87,149.81,6.77503639]
[1751616760941,6.67253475,149.87,149.84,6.37737288]
[1751616761519,6.67253475,149.87,149.81,6.77503639]
[1751616761722,6.67253475,149.87,149.84,6.37737288]
[1751616763535,6.67253475,149.87,149.83,6.37737288]
[1751616764159,6.67253475,149.87,149.84,6.37737288]
[1751616764859,6.67253475,149.87,149.81,0.1]
[1751616765163,6.67253475,149.87,149.84,6.37737288]
[1751616765325,6.67253475,149.87,149.83,6.37737288]
[1751616765520,6.67155914,149.89,149.84,6.37737288]
[1751616765726,13.04893202,149.89,149.84,6.37737288]
[1751616766250,13.04893202,149.89,149.85,6.37737288]
[1751616766435,13.04893202,149.89,149.84,6.37737288]
[1751616766621,6.37737288,149.88,149.84,6.37737288]
[1751616767039,13.04947049,149.88,149.84,6.37737288]
[1751616767246,13.04904003,149.89,149.85,6.37737288]
[1751616767426,13.04904003,149.89,149.82,6.67467627]
[1751616767624,13.04904003,149.89,149.85,6.37737288]
[1751616768648,13.04904003,149.89,149.82,6.67467627]
[1751616768649,6.37737288,149.88,149.82,6.67467627]
[1751616768821,13.04904003,149.89,149.84,6.37737288]
[1751616769242,6.67166715,149.89,149.85,6.37737288]
[1751616769648,6.67166715,149.89,149.86,6.37737288]
[1751616769852,8.26400912,149.9,149.86,6.37737288]
[1751616770162,8.26400912,149.9,149.82,23.36136696]
[1751616770163,6.37737288,149.91,149.87,6.37737288]
[1751616770451,13.04818072,149.91,149.87,6.37737288]
[1751616770946,6.37737288,149.9,149.86,6.37737288]
[1751616771244,6.37737288,149.89,149.84,6.37737288]
[1751616771547,23.34748051,149.91,149.83,6.37737288]
[1751616771548,6.37737288,149.88,149.83,6.37737288]
[1751616771758,8.01267288,149.88,149.83,6.37737288]
[1751616771922,6.37737288,149.87,149.81,0.1]
[1751616772128,6.37737288,149.87,149.83,6.37737288]
[1751616772756,6.6728947,149.86,149.83,6.37737288]
[1751616773062,13.05026758,149.86,149.82,6.37737288]
[1751616774401,6.6728947,149.86,149.82,6.37737288]
[1751616774885,13.05026758,149.86,149.82,6.37737288]
[1751616775260,13.05026758,149.86,149.81,0.1]
[1751616775465,13.05026758,149.86,149.81,6.47737288]
[1751616775664,29.73250433,149.86,149.81,6.47737288]
[1751616776780,16.68223675,149.86,149.81,6.47737288]
[1751616776980,23.05960963,149.86,149.81,6.47737288]
[1751616777363,6.67066906,149.91,149.81,0.1]
[1751616777563,6.37737288,149.89,149.85,6.37737288]
[1751616777775,6.67066906,149.91,149.81,0.1]
[1751616777776,6.37737288,149.87,149.81,0.1]
[1751616778090,6.37737288,149.88,149.83,6.37737288]
[1751616778872,6.37737288,149.87,149.83,6.37737288]
[1751616779690,6.37737288,149.87,149.82,6.37737288]
[1751616780276,6.37737288,149.88,149.83,6.37737288]
[1751616780964,6.67244945,149.87,149.83,6.37737288]
[1751616781574,13.04982233,149.87,149.83,6.37737288]
[1751616782308,13.04982233,149.87,149.82,6.37737288]
[1751616782816,8.00307288,149.86,149.81,0.1]
[1751616783008,13.05071288,149.85,149.81,0.1]
[1751616783209,6.37737288,149.84,149.81,0.1]
[1751616783619,23.35669001,149.85,149.81,0.1]
[1751616783823,29.73406289,149.85,149.81,0.1]
[1751616784734,13.05071288,149.85,149.81,0.1]
[1751616784919,13.05071288,149.85,149.81,6.47737288]
[1751616785431,13.05071288,149.85,149.81,0.1]
[1751616785643,29.73406289,149.85,149.81,0.1]
[1751616786450,6.37737288,149.84,149.81,0.1]
[1751616786835,1.6257,149.86,149.83,6.37737288]
[1751616787144,1.6257,149.86,149.81,0.1]
[1751616787145,8.29868888,149.86,149.81,0.1]
[1751616787347,8.29868888,149.86,149.83,6.37737288]
[1751616788231,6.4607,149.88,149.84,6.37737288]
[1751616788438,19.51016142,149.88,149.84,6.37737288]
[1751616788639,6.37737288,149.87,149.81,0.1]
[1751616788837,6.37737288,149.87,149.83,6.37737288]
[1751616789840,6.6728947,149.86,149.83,6.37737288]
[1751616791445,6.67244945,149.87,149.83,6.37737288]
[1751616791830,6.67244945,149.87,149.82,6.67464982]
[1751616792031,6.67244945,149.87,149.83,6.37737288]
[1751616792541,13.04982233,149.87,149.83,6.37737288]
[1751616792931,6.67244945,149.87,149.83,6.37737288]
[1751616793147,6.67244945,149.87,149.81,0.1]
[1751616793148,13.04982233,149.87,149.81,6.77469833]
[1751616793354,13.04982233,149.87,149.83,6.37737288]
[1751616794057,6.67244945,149.87,149.83,6.37737288]
[1751616794251,13.04982233,149.87,149.83,6.37737288]
[1751616794957,6.67244945,149.87,149.83,6.37737288]
[1751616795459,13.04982233,149.87,149.83,6.37737288]
[1751616795845,13.04982233,149.87,149.81,6.77498549]
[1751616796045,6.37737288,149.84,149.81,0.1]
[1751616796244,6.37737288,149.83,149.81,0.1]
[1751616796552,23.35357309,149.87,149.81,0.1]
[1751616796553,7.95767288,149.84,149.81,0.1]
[1751616797058,1.5803,149.84,149.81,0.1]
[1751616797256,6.37737288,149.83,149.81,0.1]
[1751616798054,6.67467627,149.82,149.81,0.1]
[1751616801343,6.67387338,149.84,149.81,0.1]
[1751616801541,13.05124626,149.84,149.81,0.1]
[1751616801761,6.37737288,149.83,149.81,0.1]
[1751616802454,6.37737288,149.82,149.81,0.1]
[1751616803246,13.05204915,149.82,149.81,0.1]
[1751616804264,23.35513145,149.86,149.81,0.1]
[1751616804472,6.37737288,149.84,149.81,0.1]
[1751616805770,6.67423079,149.83,149.81,0.1]
[1751616806272,13.05160367,149.83,149.81,0.1]
[1751616810873,6.37737288,149.84,149.81,0.1]
[1751616812773,16.68428153,149.85,149.81,6.47737288]
[1751616812774,6.37737288,149.85,149.81,6.47737288]
[1751616813173,6.37737288,149.86,149.81,6.47737288]
[1751616814362,6.67334,149.85,149.81,6.47737288]
[1751616815077,6.67334,149.85,149.81,13.15244401]
[1751616815290,6.37737288,149.86,149.82,6.37737288]
[1751616816150,13.0506596,149.86,149.82,6.37737288]
[1751616816595,6.67328672,149.86,149.82,6.37737288]
[1751616816768,8.25248858,149.88,149.83,6.37737288]
[1751616816974,16.67682019,149.91,149.84,6.37737288]
[1751616817283,6.37737288,149.88,149.84,6.37737288]
[1751616817976,13.04937781,149.88,149.84,6.37737288]
[1751616822877,6.37737288,149.86,149.82,6.37737288]
[1751616823085,6.67200493,149.88,149.81,6.77503638]
[1751616823293,6.37737288,149.87,149.83,6.37737288]
[1751616823787,6.67200493,149.88,149.84,6.37737288]
[1751616823986,13.04937781,149.88,149.84,6.37737288]
[1751616825594,6.67066906,149.91,149.85,6.37737288]
[1751616825757,6.37737288,149.89,149.85,6.37737288]
[1751616826284,6.37737288,149.88,149.84,13.05104381]
[1751616827186,6.37737288,149.89,149.85,6.37737288]
[1751616828692,13.04896357,149.89,149.85,6.37737288]
[1751616829692,6.37737288,149.88,149.82,6.67467627]
[1751616829992,6.37737288,149.88,149.84,6.37737288]
[1751616830997,6.37737288,149.87,149.83,6.37737288]
[1751616832796,13.05023873,149.87,149.83,6.37737288]
[1751616833676,13.05023873,149.87,149.82,6.37737288]
[1751616834418,6.37737288,149.86,149.82,6.37737288]
[1751616834590,13.05023873,149.87,149.83,6.37737288]
[1751616834778,6.67286585,149.87,149.83,6.37737288]
[1751616834976,6.67286585,149.87,149.84,6.37737288]
[1751616835380,13.05023873,149.87,149.81,6.77500486]
[1751616835584,13.05023873,149.87,149.83,6.37737288]
[1751616836299,13.05023873,149.87,149.83,13.05159459]
[1751616836983,16.67778519,149.9,149.84,6.37737288]
[1751616836984,6.37737288,149.88,149.84,6.37737288]
[1751616837183,13.04893202,149.89,149.85,6.37737288]
[1751616837480,13.04893202,149.89,149.84,6.37737288]
[1751616837797,13.04893202,149.89,149.84,13.05114369]
[1751616839297,6.37737288,149.9,149.86,6.37737288]
[1751616839805,13.04804194,149.91,149.86,6.37737288]
[1751616839988,6.37737288,149.9,149.86,6.37737288]
[1751616840189,10.37623867,149.92,149.87,6.37737288]
[1751616840382,10.37623867,149.92,149.84,6.67377081]
[1751616840383,13.04772979,149.92,149.88,6.37737288]
[1751616840583,13.04772979,149.92,149.86,1.6099]
[1751616840895,13.04772979,149.92,149.87,6.37737288]
[1751616841096,6.37737288,149.91,149.87,6.37737288]
[1751616841401,13.04848695,149.9,149.86,7.98727288]
[1751616841586,6.37737288,149.89,149.85,13.05030016]
[1751616841791,13.04784572,149.92,149.88,6.37737288]
[1751616842202,13.24732906,149.93,149.89,6.37737288]
[1751616842499,13.24732906,149.93,149.85,23.35627729]
[1751616842699,13.24732906,149.93,149.88,6.37737288]
[1751616843201,6.67066906,149.91,149.88,6.37737288]
[1751616843782,13.04775654,149.92,149.88,6.37737288]
[1751616843994,13.04775654,149.92,149.87,6.67238683]
[1751616844201,13.04775654,149.92,149.88,6.37737288]
[1751616844499,13.04775654,149.92,149.83,18.64964886]
[1751616844706,6.37737288,149.88,149.83,6.37737288]
[1751616845381,6.67244945,149.87,149.82,8.31868295]
[1751616845580,13.04982233,149.87,149.83,6.37737288]
[1751616845802,6.67244945,149.87,149.83,6.37737288]
[1751616846001,13.04982233,149.87,149.83,6.37737288]
[1751616846689,13.04982233,149.87,149.82,1.6441]
[1751616847004,13.04982233,149.87,149.83,6.37737288]
[1751616850482,6.67244945,149.87,149.83,6.37737288]
[1751616851397,6.37737288,149.88,149.83,6.37737288]
[1751616851708,6.37737288,149.86,149.82,6.37737288]
[1751616851887,6.37737288,149.85,149.81,6.47737288]
[1751616852287,6.37737288,149.86,149.81,6.47737288]
[1751616855302,6.67244945,149.87,149.81,6.47737288]
[1751616855508,6.37737288,149.86,149.82,6.37737288]
[1751616856021,6.67334,149.85,149.82,6.37737288]
[1751616856329,6.67310446,149.86,149.82,6.37737288]
[1751616856703,13.05047734,149.86,149.82,6.37737288]
[1751616858006,13.04982233,149.87,149.82,6.37737288]
[1751616858612,6.37737288,149.86,149.81,0.1]
[1751616858813,6.37737288,149.86,149.81,6.47737288]
[1751616859892,6.67244945,149.87,149.82,6.37737288]
[1751616860095,8.19527498,149.88,149.83,6.37737288]
[1751616860408,6.37737288,149.87,149.83,6.37737288]
[1751616862501,6.6728947,149.86,149.83,6.37737288]
[1751616862896,6.37737288,149.85,149.81,6.47737288]
[1751616863119,6.37737288,149.84,149.81,0.1]